fUST/lending_fUST_20251023
["ID","MTS","AMOUNT","RATE_DAILY","PERIOD"]
[392115939,1761169847759,-500.0,0.0003863,7]
[392115940,1761169847769,-11953.07,0.0003863,3]
[392115941,1761169847778,-500.0,0.0003863,7]
[392115942,1761169847787,-500.0,0.0003863,7]
[392115943,1761169847797,-273.7372459,0.0003863,7]
[392115944,1761169847807,-151.0,0.0003863,120]
[392115945,1761169847816,-183.56424,0.0003863,120]
[392115946,1761169847827,-500.0,0.0003863,7]
[392115947,1761169847835,-3313.52,0.0003863,120]
[392115948,1761169847845,-500.0,0.0003863,7]
[392115949,1761169847855,-500.0,0.0003863,7]
[392115950,1761169847864,-500.0,0.0003863,7]
[392115951,1761169847873,-235.14490279,0.0003863,7]
[392115952,1761169847883,-551.47,0.0003863,7]
[392115953,1761169847892,-500.0,0.0003863,7]
[392115954,1761169847901,-500.0,0.0003863,7]
[392115955,1761169847911,-500.0,0.0003863,7]
[392115956,1761169847921,-500.0,0.0003863,7]
[392115957,1761169847931,-1336.58,0.0003863,7]
[392115958,1761169847941,-500.0,0.0003863,7]
[392115959,1761169847952,-1853.15,0.0003863,7]
[392115960,1761169847961,-1306.03,0.0003863,7]
[392115961,1761169847971,-500.0,0.0003863,7]
[392115962,1761169847980,-500.0,0.0003863,7]
[392115963,1761169847990,-30464.81,0.0003863,7]
[392115964,1761169848000,-151.0,0.0003863,120]
[392115965,1761169848073,-500.0,0.0003863,7]
[392115966,1761169848083,-151.0,0.0003863,120]
[392115967,1761169848094,-500.0,0.0003863,7]
[392115968,1761169848104,-500.0,0.0003863,7]
[392115969,1761169848115,-500.0,0.0003863,7]
[392115970,1761169848126,-692.08,0.0003863,7]
[392115971,1761169848136,-500.0,0.0003863,7]
[392115972,1761169848146,-570.6,0.0003863,7]
[392115973,1761169848155,-500.0,0.0003863,7]
[392115974,1761169848164,-312.60709047,0.0003863,7]
[392115975,1761169848173,-2782.04,0.0003863,7]
[392115976,1761169848182,-183.29365214,0.0003863,7]
[392115977,1761169848192,-500.0,0.0003863,7]
[392115978,1761169848202,-215.30403401,0.0003863,7]
[392115979,1761169848211,-500.0,0.0003863,7]
[392115980,1761169848220,-269.40521474,0.0003863,7]
[392115981,1761169848230,-151.0,0.0003863,120]
[392115982,1761169848239,-500.0,0.0003863,7]
[392115983,1761169848251,-500.0,0.0003863,7]
[392115984,1761169848260,-1317.53,0.0003863,7]
[392115985,1761169848270,-583.86,0.0003863,7]
[392115986,1761169848279,-248.84257755,0.0003863,7]
[392115987,1761169848288,-500.0,0.0003863,7]
[392115988,1761169848297,-2573.12,0.0003863,7]
[392115989,1761169848306,-500.0,0.0003863,2]
[392115990,1761169848316,-541.77830552,0.0003863,7]
[392115991,1761169848324,-500.0,0.0003863,7]
[392115992,1761169848334,-582.70792291,0.0003863,7]
[392115993,1761169848343,-491.606358,0.0003863,120]
[392115994,1761169848351,-491.606358,0.0003863,120]
[392115995,1761169848361,-491.606358,0.0003863,120]
[392115996,1761169848372,-500.0,0.0003863,7]
[392115997,1761169848384,-500.0,0.00038632,30]
[392115998,1761169848397,-637.544975,0.00038698,15]
[392115999,1761169848407,-272.44552,0.00038698,15]
[392116000,1761169848416,-447.98,0.000387,21]
[392116001,1761169848426,-500.0,0.00038707,14]
[392116002,1761169848437,-9429.26,0.000389,14]
[392116003,1761169848447,-251.503616,0.000389,10]
[392116004,1761169848456,-1000.0,0.00038904,120]
[392116005,1761169848466,-500.0,0.00038904,7]
[392116006,1761169848476,-1000.0,0.00038904,2]
[392116007,1761169848485,-500.0,0.00038904,7]
[392116008,1761169848494,-500.0,0.00038904,7]
[392116009,1761169848504,-500.0,0.00038904,7]
[392116010,1761169848514,-500.0,0.00038904,7]
[392116011,1761169848525,-500.0,0.00038904,7]
[392116012,1761169848535,-500.0,0.00038904,7]
[392116013,1761169848545,-500.0,0.00038904,2]
[392116014,1761169848555,-500.0,0.00038904,7]
[392116015,1761169848564,-200.0,0.00038904,7]
[392116016,1761169848573,-500.0,0.00038904,7]
[392116017,1761169848583,-500.0,0.00038904,7]
[392116018,1761169848593,-500.0,0.00038904,7]
[392116019,1761169848603,-500.0,0.00038904,7]
[392116020,1761169848613,-500.0,0.00038904,7]
[392116021,1761169848623,-164.30000083,0.00038904,7]
[392116022,1761169848633,-1000.0,0.00038904,2]
[392116023,1761169848643,-500.0,0.00038904,7]
[392116024,1761169848653,-500.0,0.00038904,5]
[392116025,1761169848662,-340.17902086,0.00038904,7]
[392116026,1761169848671,-500.0,0.00038904,7]
[392116027,1761169848680,-500.0,0.00038904,7]
[392116028,1761169848689,-1772.39,0.00038904,7]
[392116029,1761169848699,-500.0,0.00038904,7]
[392116030,1761169848708,-2978.72,0.00038904,2]
[392116031,1761169848717,-558.1,0.00038904,7]
[392116032,1761169848726,-607.53465699,0.00038904,7]
[392116033,1761169848734,-682.42,0.00038904,7]
[392116034,1761169848744,-3826.67,0.00038904,7]
[392116035,1761169848753,-500.0,0.00038904,7]
[392116036,1761169848762,-500.0,0.00038904,7]
[392116037,1761169848771,-500.0,0.00038904,7]
[392116038,1761169848781,-500.0,0.00038904,7]
[392116039,1761169848790,-500.0,0.00038904,7]
[392116040,1761169848801,-500.0,0.00038904,7]
[392116041,1761169848810,-532.45495973,0.00038904,5]
[392116042,1761169848819,-559.76,0.00038904,7]
[392116043,1761169848829,-151.0,0.00038904,7]
[392116044,1761169848838,-500.0,0.00038904,7]
[392116045,1761169848849,-582.11,0.00038904,7]
[392116046,1761169848860,-500.0,0.00038904,7]
[392116047,1761169848869,-2458.23,0.00038904,7]
[392116048,1761169848879,-5615.21,0.00038904,7]
[392116049,1761169848888,-271.36499344,0.00038904,7]
[392116050,1761169848898,-500.0,0.00038904,7]
[392116051,1761169848908,-500.0,0.00038904,7]
[392116052,1761169848917,-500.0,0.00038904,7]
[392116053,1761169848927,-500.0,0.00038904,2]
[392116054,1761169848938,-500.0,0.00038904,7]
[392116055,1761169848947,-500.0,0.00038904,7]
[392116056,1761169848958,-500.0,0.00038904,7]
[392116057,1761169848967,-500.0,0.00038904,2]
[392116058,1761169848977,-500.0,0.00038904,7]
[392116059,1761169848987,-500.0,0.00038904,7]
[392116060,1761169848997,-500.0,0.00038904,7]
[392116061,1761169849007,-1615.11,0.00038904,7]
[392116062,1761169849018,-500.0,0.00038904,7]
[392116063,1761169849028,-532.38,0.00038904,7]
[392116064,1761169849039,-500.0,0.00038904,7]
[392116065,1761169849048,-500.0,0.00038904,7]
[392116066,1761169849058,-500.0,0.00038904,7]
[392116067,1761169849067,-500.0,0.00038904,7]
[392116068,1761169849076,-500.0,0.00038904,7]
[392116069,1761169849085,-500.0,0.00038904,7]
[392116070,1761169849096,-500.0,0.00038904,7]
[392116071,1761169849105,-500.0,0.00038904,7]
[392116072,1761169849114,-11953.07,0.00038904,3]
[392116073,1761169849124,-500.0,0.00038904,7]
[392116074,1761169849133,-500.0,0.00038904,7]
[392116075,1761169849143,-505.58178419,0.00038904,7]
[392116076,1761169849152,-500.0,0.00038904,7]
[392116077,1761169849162,-500.0,0.00038904,7]
[392116078,1761169849171,-500.0,0.00038904,7]
[392116079,1761169849180,-551.47,0.00038904,7]
[392116080,1761169849190,-500.0,0.00038904,7]
[392116081,1761169849198,-500.0,0.00038904,7]
[392116082,1761169849209,-580.06033899,0.00038904,7]
[392116083,1761169849218,-500.0,0.00038904,7]
[392116084,1761169849228,-1336.58,0.00038904,7]
[392116085,1761169849238,-500.0,0.00038904,7]
[392116086,1761169849248,-1853.15,0.00038904,7]
[392116087,1761169849258,-1306.03,0.00038904,7]
[392116088,1761169849267,-500.0,0.00038904,7]
[392116089,1761169849276,-500.0,0.00038904,7]
[392116090,1761169849287,-30464.81,0.00038904,7]
[392116091,1761169849297,-314.2258727,0.00038904,7]
[392116092,1761169849307,-500.0,0.00038904,7]
[392116093,1761169849317,-258.79007502,0.00038904,7]
[392116094,1761169849327,-500.0,0.00038904,7]
[392116095,1761169849337,-692.08,0.00038904,7]
[392116096,1761169849347,-500.0,0.00038904,7]
[392116097,1761169849356,-570.6,0.00038904,7]
[392116098,1761169849365,-500.0,0.00038904,7]
[392116099,1761169849375,-2782.04,0.00038904,7]
[392116100,1761169849446,-500.0,0.00038904,7]
[392116101,1761169849456,-500.0,0.00038904,7]
[392116102,1761169849465,-500.0,0.00038904,7]
[392116103,1761169849475,-500.0,0.00038904,7]
[392116104,1761169849484,-1317.53,0.00038904,7]
[392116105,1761169849494,-583.86,0.00038904,7]
[392116106,1761169849504,-157.60416426,0.00038904,7]
[392116107,1761169849513,-2573.12,0.00038904,7]
[392116108,1761169849523,-500.0,0.00038904,2]
[392116109,1761169849532,-500.0,0.00038904,7]
[392116110,1761169849543,-588.77713271,0.00038904,7]
[392116111,1761169849552,-500.0,0.00038904,30]
[392116112,1761169849562,-400.0,0.00038921,5]
[392116113,1761169849571,-403.14601822,0.00039,30]
[392116114,1761169849580,-637.544975,0.00039075,60]
[392116115,1761169849590,-272.44552,0.00039075,60]
[392116116,1761169849599,-10143.17145259,0.00039078,2]
[392116117,1761169849608,-1000.0,0.00039178,120]
[392116118,1761169849618,-500.0,0.00039178,7]
[392116119,1761169849627,-1000.0,0.00039178,2]
[392116120,1761169849637,-500.0,0.00039178,7]
[392116121,1761169849647,-500.0,0.00039178,7]
[392116122,1761169849657,-500.0,0.00039178,7]
[392116123,1761169849666,-500.0,0.00039178,7]
[392116124,1761169849675,-500.0,0.00039178,7]
[392116125,1761169849685,-500.0,0.00039178,7]
[392116126,1761169849694,-500.0,0.00039178,2]
[392116127,1761169849703,-500.0,0.00039178,7]
[392116128,1761169849713,-200.0,0.00039178,7]
[392116129,1761169849723,-500.0,0.00039178,7]
[392116130,1761169849733,-500.0,0.00039178,7]
[392116131,1761169849742,-500.0,0.00039178,7]
[392116132,1761169849752,-500.0,0.00039178,7]
[392116133,1761169849761,-500.0,0.00039178,7]
[392116134,1761169849771,-1000.0,0.00039178,2]
[392116135,1761169849780,-500.0,0.00039178,7]
[392116136,1761169849790,-500.0,0.00039178,5]
[392116137,1761169849800,-500.0,0.00039178,7]
[392116138,1761169849809,-500.0,0.00039178,7]
[392116139,1761169849819,-1772.39,0.00039178,7]
[392116140,1761169849828,-500.0,0.00039178,7]
[392116141,1761169849837,-2978.72,0.00039178,2]
[392116142,1761169849847,-558.1,0.00039178,7]
[392116143,1761169849857,-682.42,0.00039178,7]
[392116144,1761169849866,-3826.67,0.00039178,7]
[392116145,1761169849876,-500.0,0.00039178,7]
[392116146,1761169849886,-500.0,0.00039178,7]
[392116147,1761169849896,-500.0,0.00039178,7]
[392116148,1761169849906,-500.0,0.00039178,7]
[392116149,1761169849916,-500.0,0.00039178,7]
[392116150,1761169849925,-559.76,0.00039178,7]
[392116151,1761169849935,-500.0,0.00039178,7]
[392116152,1761169849945,-582.11,0.00039178,7]
[392116153,1761169849955,-500.0,0.00039178,7]
[392116154,1761169849965,-2458.23,0.00039178,7]
[392116155,1761169849975,-5615.21,0.00039178,7]
[392116156,1761169849985,-500.0,0.00039178,7]
[392116157,1761169849995,-500.0,0.00039178,7]
[392116158,1761169850004,-338.54362735,0.00039178,7]
[392116159,1761169850014,-504.42236108,0.00039178,2]
[392116160,1761169850023,-500.0,0.00039178,7]
[392116161,1761169850033,-500.0,0.00039178,7]
[392116162,1761169850043,-500.0,0.00039178,7]
[392116163,1761169850052,-159.07657945,0.00039178,2]
[392116164,1761169850062,-500.0,0.00039178,7]
[392116165,1761169850072,-500.0,0.00039178,7]
[392116166,1761169850082,-500.0,0.00039178,7]
[392116167,1761169850092,-1615.11,0.00039178,7]
[392116168,1761169850102,-500.0,0.00039178,7]
[392116169,1761169850111,-532.38,0.00039178,7]
[392116170,1761169850121,-500.0,0.00039178,7]
[392116171,1761169850131,-500.0,0.00039178,7]
[392116172,1761169850141,-500.0,0.00039178,7]
[392116173,1761169850150,-500.0,0.00039178,7]
[392116174,1761169850159,-500.0,0.00039178,7]
[392116175,1761169850168,-523.77701017,0.00039178,7]
[392116176,1761169850178,-500.0,0.00039178,7]
[392116177,1761169850188,-11953.07,0.00039178,3]
[392116178,1761169850198,-500.0,0.00039178,7]
[392116179,1761169850207,-500.0,0.00039178,7]
[392116180,1761169850217,-500.0,0.00039178,7]
[392116181,1761169850227,-500.0,0.00039178,7]
[392116182,1761169850236,-548.2556978,0.00039178,7]
[392116183,1761169850246,-551.47,0.00039178,7]
[392116184,1761169850256,-500.0,0.00039178,7]
[392116185,1761169850266,-500.0,0.00039178,7]
[392116186,1761169850275,-1336.58,0.00039178,7]
[392116187,1761169850285,-500.0,0.00039178,7]
[392116188,1761169850295,-1853.15,0.00039178,7]
[392116189,1761169850304,-1306.03,0.00039178,7]
[392116190,1761169850314,-500.0,0.00039178,7]
[392116191,1761169850323,-500.0,0.00039178,7]
[392116192,1761169850332,-30464.81,0.00039178,7]
[392116193,1761169850342,-500.0,0.00039178,7]
[392116194,1761169850352,-500.0,0.00039178,7]
[392116195,1761169850362,-692.08,0.00039178,7]
[392116196,1761169850372,-500.0,0.00039178,7]
[392116197,1761169850381,-570.6,0.00039178,7]
[392116198,1761169850394,-500.0,0.00039178,7]
[392116199,1761169850404,-2782.04,0.00039178,7]
[392116200,1761169850414,-500.0,0.00039178,7]
[392116201,1761169850423,-500.0,0.00039178,7]
[392116202,1761169850435,-500.0,0.00039178,7]
[392116203,1761169850444,-500.0,0.00039178,7]
[392116204,1761169850455,-1317.53,0.00039178,7]
[392116205,1761169850466,-583.86,0.00039178,7]
[392116206,1761169850475,-2573.12,0.00039178,7]
[392116207,1761169850485,-500.0,0.00039178,2]
[392116208,1761169850495,-500.0,0.00039178,7]
[392116209,1761169850505,-158.97718661,0.00039205,30]
[392116210,1761169850515,-2815.95383093,0.00039352,2]
[392116211,1761169850525,-1000.0,0.00039452,120]
[392116212,1761169850535,-500.0,0.00039452,7]
[392116213,1761169850544,-1000.0,0.00039452,2]
[392116214,1761169850554,-500.0,0.00039452,7]
[392116215,1761169850563,-500.0,0.00039452,7]
[392116216,1761169850573,-500.0,0.00039452,7]
[392116217,1761169850582,-500.0,0.00039452,7]
[392116218,1761169850592,-500.0,0.00039452,7]
[392116219,1761169850602,-500.0,0.00039452,7]
[392116220,1761169850612,-514.17782849,0.00039452,2]
[392116221,1761169850621,-500.0,0.00039452,7]
[392116222,1761169850631,-200.0,0.00039452,7]
[392116223,1761169850641,-500.0,0.00039452,7]
[392116224,1761169850651,-500.0,0.00039452,7]
[392116225,1761169850720,-500.0,0.00039452,7]
[392116226,1761169850730,-500.0,0.00039452,7]
[392116227,1761169850739,-1000.0,0.00039452,2]
[392116228,1761169850749,-154.82739698,0.00039452,7]
[392116229,1761169850758,-500.0,0.00039452,5]
[392116230,1761169850767,-500.0,0.00039452,7]
[392116231,1761169850777,-500.0,0.00039452,7]
[392116232,1761169850787,-1772.39,0.00039452,7]
[392116233,1761169850796,-500.0,0.00039452,7]
[392116234,1761169850805,-2978.72,0.00039452,2]
[392116235,1761169850815,-558.1,0.00039452,7]
[392116236,1761169850825,-682.42,0.00039452,7]
[392116237,1761169850834,-3826.67,0.00039452,7]
[392116238,1761169850843,-500.0,0.00039452,7]
[392116239,1761169850852,-370.28735993,0.00039452,7]
[392116240,1761169850862,-500.0,0.00039452,7]
[392116241,1761169850871,-500.0,0.00039452,7]
[392116242,1761169850880,-500.0,0.00039452,7]
[392116243,1761169850888,-559.76,0.00039452,7]
[392116244,1761169850898,-500.0,0.00039452,7]
[392116245,1761169850907,-582.11,0.00039452,7]
[392116246,1761169850916,-500.0,0.00039452,7]
[392116247,1761169850925,-2458.23,0.00039452,7]
[392116248,1761169850935,-5615.21,0.00039452,7]
[392116249,1761169850944,-500.0,0.00039452,7]
[392116250,1761169850953,-500.0,0.00039452,7]
[392116251,1761169850963,-219.05821306,0.00039452,7]
[392116252,1761169850972,-500.0,0.00039452,7]
[392116253,1761169850982,-500.0,0.00039452,7]
[392116254,1761169850992,-500.0,0.00039452,7]
[392116255,1761169851001,-500.0,0.00039452,7]
[392116256,1761169851011,-500.0,0.00039452,7]
[392116257,1761169851021,-500.0,0.00039452,7]
[392116258,1761169851030,-1615.11,0.00039452,7]
[392116259,1761169851040,-532.38,0.00039452,7]
[392116260,1761169851050,-500.0,0.00039452,7]
[392116261,1761169851060,-500.0,0.00039452,7]
[392116262,1761169851070,-500.0,0.00039452,7]
[392116263,1761169851079,-500.0,0.00039452,7]
[392116264,1761169851090,-500.0,0.00039452,7]
[392116265,1761169851100,-500.0,0.00039452,7]
[392116266,1761169851111,-11953.07,0.00039452,3]
[392116267,1761169851120,-453.85733724,0.00039452,7]
[392116268,1761169851130,-500.0,0.00039452,7]
[392116269,1761169851140,-3313.52,0.00039452,120]
[392116270,1761169851152,-500.0,0.00039452,7]
[392116271,1761169851162,-500.0,0.00039452,7]
[392116272,1761169851172,-551.47,0.00039452,7]
[392116273,1761169851182,-500.0,0.00039452,7]
[392116274,1761169851193,-407.76442984,0.00039452,7]
[392116275,1761169851203,-1336.58,0.00039452,7]
[392116276,1761169851213,-500.0,0.00039452,7]
[392116277,1761169851223,-1853.15,0.00039452,7]
[392116278,1761169851232,-1306.03,0.00039452,7]
[392116279,1761169851242,-500.0,0.00039452,7]
[392116280,1761169851252,-500.0,0.00039452,7]
[392116281,1761169851261,-30464.81,0.00039452,7]
[392116282,1761169851271,-500.0,0.00039452,7]
[392116283,1761169851281,-500.0,0.00039452,7]
[392116284,1761169851291,-692.08,0.00039452,7]
[392116285,1761169851301,-500.0,0.00039452,7]
[392116286,1761169851310,-570.6,0.00039452,7]
[392116287,1761169851320,-500.0,0.00039452,7]
[392116288,1761169851330,-2782.04,0.00039452,7]
[392116289,1761169851342,-288.54069869,0.00039452,7]
[392116290,1761169851352,-267.83313999,0.00039452,7]
[392116291,1761169851363,-500.0,0.00039452,7]
[392116292,1761169851374,-500.0,0.00039452,7]
[392116293,1761169851384,-1317.53,0.00039452,7]
[392116294,1761169851399,-583.86,0.00039452,7]
[392116295,1761169851410,-2573.12,0.00039452,7]
[392116296,1761169851420,-500.0,0.00039452,2]
[392116297,1761169851431,-500.0,0.00039452,7]
[392116298,1761169851441,-500.0,0.00039452,30]
[392116299,1761169851450,-600.0,0.00039468,5]
[392116300,1761169851462,-190.0811961,0.00039507,30]
[392116301,1761169851472,-182.5836663,0.00039507,30]
[392116302,1761169851482,-2258.0,0.0003955,5]
[392116303,1761169851492,-152.36785561,0.00039726,7]
[392116304,1761169851502,-1000.0,0.00039726,2]
[392116305,1761169851512,-500.0,0.00039726,7]
[392116306,1761169851521,-500.0,0.00039726,7]
[392116307,1761169851531,-500.0,0.00039726,7]
[392116308,1761169851540,-500.0,0.00039726,7]
[392116309,1761169851550,-500.0,0.00039726,7]
[392116310,1761169851559,-500.0,0.00039726,7]
[392116311,1761169851569,-500.0,0.00039726,7]
[392116312,1761169851578,-200.0,0.00039726,7]
[392116313,1761169851587,-500.0,0.00039726,7]
[392116314,1761169851597,-500.0,0.00039726,7]
[392116315,1761169851606,-500.0,0.00039726,7]
[392116316,1761169851616,-500.0,0.00039726,7]
[392116317,1761169851625,-1000.0,0.00039726,2]
[392116318,1761169851635,-500.0,0.00039726,5]
[392116319,1761169851644,-500.0,0.00039726,7]
[392116320,1761169851654,-500.0,0.00039726,7]
[392116321,1761169851663,-1772.39,0.00039726,7]
[392116322,1761169851673,-500.0,0.00039726,7]
[392116323,1761169851683,-2978.72,0.00039726,2]
[392116324,1761169851692,-558.1,0.00039726,7]
[392116325,1761169851701,-682.42,0.00039726,7]
[392116326,1761169851711,-3826.67,0.00039726,7]
[392116327,1761169851720,-500.0,0.00039726,7]
[392116328,1761169851730,-500.0,0.00039726,7]
[392116329,1761169851739,-500.0,0.00039726,7]
[392116330,1761169851749,-500.0,0.00039726,7]
[392116331,1761169851758,-559.76,0.00039726,7]
[392116332,1761169851767,-500.0,0.00039726,7]
[392116333,1761169851777,-582.11,0.00039726,7]
[392116334,1761169851786,-500.0,0.00039726,7]
[392116335,1761169851796,-2458.23,0.00039726,7]
[392116336,1761169851805,-5615.21,0.00039726,7]
[392116337,1761169851815,-500.0,0.00039726,7]
[392116338,1761169851824,-500.0,0.00039726,7]
[392116339,1761169851892,-249.053096,0.00039726,120]
[392116340,1761169851904,-151.0,0.00039726,2]
[392116341,1761169851914,-151.0,0.00039726,2]
[392116342,1761169851924,-500.0,0.00039726,7]
[392116343,1761169851934,-500.0,0.00039726,7]
[392116344,1761169851943,-500.0,0.00039726,7]
[392116345,1761169851952,-500.0,0.00039726,7]
[392116346,1761169851962,-500.0,0.00039726,7]
[392116347,1761169851972,-500.0,0.00039726,7]
[392116348,1761169851981,-1615.11,0.00039726,7]
[392116349,1761169851991,-532.38,0.00039726,7]
[392116350,1761169852000,-500.0,0.00039726,7]
[392116351,1761169852010,-500.0,0.00039726,7]
[392116352,1761169852019,-500.0,0.00039726,7]
[392116353,1761169852028,-500.0,0.00039726,7]
[392116354,1761169852038,-500.0,0.00039726,7]
[392116355,1761169852048,-500.0,0.00039726,7]
[392116356,1761169852057,-11953.07,0.00039726,3]
[392116357,1761169852067,-500.0,0.00039726,7]
[392116358,1761169852076,-151.0,0.00039726,120]
[392116359,1761169852086,-500.0,0.00039726,7]
[392116360,1761169852095,-500.0,0.00039726,7]
[392116361,1761169852104,-551.47,0.00039726,7]
[392116362,1761169852113,-500.0,0.00039726,7]
[392116363,1761169852123,-1336.58,0.00039726,7]
[392116364,1761169852133,-500.0,0.00039726,7]
[392116365,1761169852142,-1853.15,0.00039726,7]
[392116366,1761169852152,-1306.03,0.00039726,7]
[392116367,1761169852161,-500.0,0.00039726,7]
[392116368,1761169852170,-500.0,0.00039726,7]
[392116369,1761169852179,-30464.81,0.00039726,7]
[392116370,1761169852189,-500.0,0.00039726,7]
[392116371,1761169852198,-500.0,0.00039726,7]
[392116372,1761169852208,-692.08,0.00039726,7]
[392116373,1761169852217,-500.0,0.00039726,7]
[392116374,1761169852227,-570.6,0.00039726,7]
[392116375,1761169852237,-500.0,0.00039726,7]
[392116376,1761169852246,-2782.04,0.00039726,7]
[392116377,1761169852255,-500.0,0.00039726,7]
[392116378,1761169852264,-500.0,0.00039726,7]
[392116379,1761169852274,-1317.53,0.00039726,7]
[392116380,1761169852283,-583.86,0.00039726,7]
[392116381,1761169852292,-2573.12,0.00039726,7]
[392116382,1761169852303,-393.91491765,0.00039726,2]
[392116383,1761169852312,-500.0,0.00039726,7]
[392116384,1761169852321,-160.0,0.00039759,5]
[392116385,1761169852331,-800.0,0.000398,7]
[392116386,1761169852340,-2691.25,0.000398,14]
[392116387,1761169852350,-13980.55326019,0.000399,120]
[392116388,1761169852360,-151.0,0.000399,120]
[392116389,1761169852369,-151.0,0.000399,120]
[392116390,1761169852379,-285.50631,0.000399,120]
[392116391,1761169852389,-151.0,0.000399,120]
[392116392,1761169852402,-637.544975,0.00039924,5]
[392116393,1761169852411,-272.44552,0.00039924,5]
[392116394,1761169852420,-500.0,0.0004,30]
[392116395,1761169852430,-1000.0,0.0004,2]
[392116396,1761169852441,-500.0,0.0004,7]
[392116397,1761169852450,-500.0,0.0004,7]
[392116398,1761169852459,-500.0,0.0004,7]
[392116399,1761169852469,-500.0,0.0004,7]
[392116400,1761169852478,-500.0,0.0004,7]
[392116401,1761169852488,-500.0,0.0004,7]
[392116402,1761169852497,-500.0,0.0004,7]
[392116403,1761169852507,-200.0,0.0004,7]
[392116404,1761169852517,-500.0,0.0004,7]
[392116405,1761169852527,-500.0,0.0004,7]
[392116406,1761169852537,-500.0,0.0004,7]
[392116407,1761169852546,-500.0,0.0004,7]
[392116408,1761169852556,-1000.0,0.0004,2]
[392116409,1761169852565,-500.0,0.0004,5]
[392116410,1761169852574,-500.0,0.0004,7]
[392116411,1761169852584,-500.0,0.0004,7]
[392116412,1761169852594,-1772.39,0.0004,7]
[392116413,1761169852604,-500.0,0.0004,7]
[392116414,1761169852615,-2978.72,0.0004,2]
[392116415,1761169852626,-558.1,0.0004,7]
[392116416,1761169852641,-682.42,0.0004,7]
[392116417,1761169852652,-3826.67,0.0004,7]
[392116418,1761169852662,-500.0,0.0004,7]
[392116419,1761169852671,-500.0,0.0004,7]
[392116420,1761169852682,-500.0,0.0004,7]
[392116421,1761169852692,-500.0,0.0004,7]
[392116422,1761169852701,-559.76,0.0004,7]
[392116423,1761169852711,-151.0,0.0004,7]
[392116424,1761169852724,-500.0,0.0004,7]
[392116425,1761169852745,-582.11,0.0004,7]
[392116426,1761169852765,-500.0,0.0004,7]
[392116427,1761169852776,-2458.23,0.0004,7]
[392116428,1761169852787,-5615.21,0.0004,7]
[392116429,1761169852797,-500.0,0.0004,7]
[392116430,1761169852806,-500.0,0.0004,7]
[392116431,1761169852815,-500.0,0.0004,7]
[392116432,1761169852825,-500.0,0.0004,7]
[392116433,1761169852834,-500.0,0.0004,7]
[392116434,1761169852845,-500.0,0.0004,7]
[392116435,1761169852855,-500.0,0.0004,7]
[392116436,1761169852866,-500.0,0.0004,7]
[392116437,1761169852876,-1615.11,0.0004,7]
[392116438,1761169852890,-532.38,0.0004,7]